bitfinex/quotes_BTCUSD_20260126
["timestamp","ask_amount","ask_price","bid_price","bid_amount"]
[1769425560144,0.02478637,87985.0,87972.0,0.18436917]
[1769425560297,0.57586286,87984.0,87972.0,0.18436917]
[1769425560497,0.57586286,87984.0,87972.0,0.09047483]
[1769425560880,0.57586286,87984.0,85400.0,0.011515]
[1769425560881,0.02276854,87975.0,87960.0,0.13609682]
[1769425561069,0.02276854,87975.0,87957.0,0.02279616]
[1769425561070,0.27178981,87970.0,87961.0,0.02133587]
[1769425561208,0.02276854,87975.0,87960.0,0.5418519]
[1769425561552,0.02276854,87975.0,87961.0,0.02244626]
[1769425561849,0.27178981,87971.0,87961.0,0.02244626]
[1769425562633,0.02276854,87975.0,87961.0,0.03381493]
[1769425562838,0.02276854,87975.0,87961.0,0.02244626]
[1769425563222,0.02276854,87975.0,87961.0,0.03381493]
[1769425563420,0.02276854,87975.0,87961.0,0.02244626]
[1769425563846,0.02276854,87975.0,87961.0,0.11640843]
[1769425565235,0.19740854,87989.0,87962.0,0.01136854]
[1769425565440,0.02276854,87974.0,87965.0,0.5418519]
[1769425565742,0.02276854,87974.0,87966.0,0.02251107]
[1769425567154,0.02276854,87974.0,87967.0,0.51905574]
[1769425567391,0.02276854,87974.0,87968.0,0.02251056]
[1769425567936,0.02276854,87973.0,87968.0,0.02251056]
[1769425568256,0.02276854,87973.0,87968.0,0.56436246]
[1769425568471,0.02276854,87973.0,87968.0,0.5418519]
[1769425569469,0.19740854,87989.0,87968.0,0.09283764]
[1769425569641,0.19740854,87989.0,87971.0,0.5418519]
[1769425569839,0.22219491,87989.0,87972.0,0.0225092]
[1769425570104,0.74848503,87989.0,87972.0,0.0225092]
[1769425570243,0.02478637,87988.0,87972.0,0.0225092]
[1769425571438,0.02478637,87988.0,87973.0,0.01136712]
[1769425571585,0.02478637,87988.0,87974.0,0.02251078]
[1769425571907,0.02478637,87988.0,87972.0,0.02251079]
[1769425572109,0.02478637,87986.0,87966.0,0.05683987]
[1769425572350,0.57586286,87985.0,87967.0,0.08958285]
[1769425572708,0.27173673,87980.0,87967.0,0.02137578]
[1769425572909,0.27173673,87980.0,87967.0,0.08679306]
[1769425573111,0.27173673,87980.0,87967.0,0.06541728]
[1769425579156,0.82094978,87980.0,87967.0,0.06541728]
[1769425582050,0.64613363,87980.0,87967.0,0.06541728]
[1769425583617,0.02276854,87975.0,87967.0,0.06541728]
[1769425583868,0.02276854,87975.0,87968.0,0.01095692]
[1769425585028,0.02276854,87975.0,87968.0,0.0095722]
[1769425586340,0.02472831,87980.0,87968.0,0.0095722]
[1769425586539,0.54725328,87988.0,87970.0,0.52309618]
[1769425586968,0.02276854,87988.0,87971.0,0.04686827]
[1769425587147,0.02276854,87988.0,87971.0,0.06729048]
[1769425587579,0.02472831,87987.0,87971.0,0.06729048]
[1769425587878,0.54921305,87986.0,87971.0,0.04291121]
[1769425597141,0.54921305,87986.0,87971.0,0.05427859]
[1769425597345,0.54921305,87986.0,87971.0,0.04291121]
[1769425597843,0.54921305,87986.0,87971.0,0.05427859]
[1769425598050,0.54921305,87986.0,87971.0,0.04291121]
[1769425598686,0.35791757,87986.0,87972.0,0.09750951]
[1769425598864,0.35791757,87986.0,87973.0,0.02248848]
[1769425602435,0.35791757,87986.0,87973.0,0.09069081]
[1769425602812,0.35791757,87986.0,87973.0,0.0338556]
[1769425603013,0.35791757,87986.0,87974.0,0.01136699]
[1769425603192,0.35791757,87986.0,87975.0,0.02248796]
[1769425603598,0.35791757,87986.0,87976.0,0.02248769]
[1769425603798,0.35791757,87986.0,87974.0,0.02248769]
[1769425604001,0.35791757,87986.0,87976.0,0.01136673]
[1769425604002,0.35783824,87986.0,87976.0,0.01136673]
[1769425604204,0.35783824,87986.0,87976.0,0.0338539]
[1769425604546,0.35783824,87986.0,87976.0,0.02248717]
[1769425604969,0.35783824,87986.0,87976.0,0.01832523]
[1769425605146,0.35783824,87986.0,87974.0,0.02969263]
[1769425605349,0.35783824,87986.0,87975.0,0.07633025]
[1769425605546,0.35783824,87986.0,87976.0,0.01832522]
[1769425605746,0.02276854,87988.0,87977.0,0.02437927]
[1769425606319,0.02276854,87988.0,87976.0,0.01832522]
[1769425606513,0.00416205,87987.0,87976.0,0.01832522]
[1769425607947,0.00416205,87987.0,87976.0,0.10049489]
[1769425610067,0.02276854,87988.0,87976.0,0.10049489]
[1769425612779,0.17464,87989.0,87978.0,0.56891046]
[1769425612987,0.00416205,87988.0,87978.0,0.56891046]
[1769425613163,0.00416205,87988.0,87971.0,0.02042221]
[1769425613363,0.27173673,87981.0,87968.0,0.01136777]
[1769425613591,0.02406695,87986.0,87967.0,0.06820697]
[1769425613779,0.54813814,87985.0,87969.0,0.01136764]
[1769425613969,0.54397609,87985.0,87968.0,0.01136777]
[1769425614179,0.00416205,87984.0,87967.0,0.01136789]
[1769425615342,0.00416205,87984.0,87966.0,0.02278603]
[1769425615895,0.00416205,87984.0,87967.0,0.01136789]
[1769425616406,0.00416205,87984.0,87967.0,0.06820704]
[1769425616717,0.00416205,87984.0,87968.0,0.01136777]
[1769425616918,0.00416205,87984.0,87969.0,0.22735281]
[1769425617119,0.00416205,87984.0,87973.0,0.06820267]
[1769425617320,0.00416205,87984.0,87973.0,0.01136712]
[1769425617908,0.00416205,87984.0,87974.0,0.01136699]
[1769425618108,0.00416205,87984.0,87973.0,0.0682027]
[1769425618405,0.00416205,87985.0,87973.0,0.0682027]
[1769425618603,0.00416205,87985.0,87974.0,0.06820168]
[1769425618810,0.00416205,87989.0,87976.0,0.02278603]
[1769425620693,0.00416205,87989.0,87977.0,0.00808083]
[1769425620897,0.00416205,87989.0,87979.0,0.03415237]
[1769425621102,0.02325331,87995.0,87982.0,0.01136596]
[1769425621339,0.02325331,87995.0,87983.0,0.01136583]
[1769425621678,0.02325331,87995.0,87980.0,0.63710727]
[1769425621874,0.02325331,87995.0,87980.0,0.58027667]
[1769425622066,0.02325331,87995.0,87982.0,0.01136596]
[1769425622465,0.02325331,87995.0,87981.0,0.06819649]
[1769425622774,0.02325331,87995.0,87982.0,0.05682975]
[1769425622976,0.02325331,87995.0,87982.0,0.01136596]
[1769425623873,0.02325331,87995.0,87983.0,0.05682869]
[1769425624057,0.02325331,87995.0,87984.0,0.06819374]
[1769425624264,0.02325331,87995.0,87984.0,0.0113657]
[1769425624501,0.02325331,87995.0,87984.0,0.06812682]
[1769425624911,0.02325331,87995.0,87982.0,0.01136596]
[1769425625422,0.02325331,87995.0,87981.0,0.00870206]
[1769425625625,0.02325331,87995.0,87981.0,0.11647542]
[1769425627618,0.02325331,87995.0,87981.0,0.02006815]
[1769425627809,0.02325331,87995.0,87981.0,0.00870206]
[1769425628463,0.00430975,87993.0,87980.0,0.56891046]
[1769425630150,0.00430975,87993.0,87981.0,0.00983815]
[1769425631941,0.27163297,87991.0,87976.0,0.02278603]
[1769425632143,0.00416205,87990.0,87976.0,0.02278603]
[1769425632306,0.00416205,87990.0,87977.0,0.07280504]
[1769425636389,0.00416205,87990.0,87978.0,0.00755682]
[1769425636594,0.0001477,87993.0,87978.0,0.00755682]
[1769425636776,0.0001477,87993.0,87978.0,0.01892329]
[1769425637174,0.0001477,87993.0,87979.0,0.05683149]
[1769425637397,0.0001477,87993.0,87980.0,0.00755664]
[1769425638282,0.0001477,87993.0,87981.0,0.00869317]
[1769425638689,0.0001477,87993.0,87979.0,0.00869317]
[1769425639820,0.00430975,87993.0,87979.0,0.00869317]
[1769425640019,0.27163297,87990.0,87977.0,0.07280504]
[1769425640211,0.02276854,87981.0,87973.0,0.17464]
[1769425640795,0.53564387,87978.0,87963.0,0.1747839]
[1769425640994,0.55970451,87977.0,87963.0,0.1747839]
[1769425644538,0.55970451,87977.0,87963.0,0.18615231]
[1769425644741,0.02406064,87977.0,87964.0,0.01136828]
[1769425644904,0.02276854,87981.0,87965.0,0.06820873]
[1769425645119,0.02276854,87981.0,87966.0,0.11160278]
[1769425645651,0.02276854,87981.0,87966.0,0.1229708]
[1769425646006,0.02276854,87981.0,87967.0,0.01136789]
[1769425646202,0.00416205,87983.0,87969.0,0.01136764]
[1769425646413,0.02276854,87989.0,87983.0,0.55259176]
[1769425646609,0.0001477,87993.0,87983.0,0.61140449]
[1769425646811,0.02276854,87992.0,87983.0,0.60724244]
[1769425648632,0.02276854,87989.0,87983.0,0.60724244]
[1769425648809,0.02284265,87989.0,87983.0,0.60724244]
[1769425649012,0.02284265,87989.0,87984.0,0.06427785]
[1769425650243,0.40094951,87999.0,87984.0,0.06427785]
[1769425650405,0.02276854,87989.0,87984.0,0.06436262]
[1769425651184,0.02276854,87989.0,87984.0,8.477e-05]
[1769425654195,0.02276854,87988.0,87984.0,8.477e-05]
[1769425654583,0.02276854,87988.0,87984.0,0.01145047]
[1769425654993,0.02276854,87988.0,87984.0,8.477e-05]
[1769425655434,0.40094951,87999.0,87984.0,0.01145047]
[1769425655613,0.02276854,87992.0,87984.0,0.01145047]
[1769425655807,0.02276854,87992.0,87984.0,8.477e-05]
[1769425656308,0.02276854,87992.0,87984.0,0.01145047]
[1769425656511,0.02276854,87992.0,87984.0,8.477e-05]
[1769425660974,0.02276854,87992.0,87984.0,0.01145047]
[1769425661231,0.02276854,87992.0,87985.0,0.0139951]
[1769425661382,0.02276854,87992.0,87984.0,8.477e-05]
[1769425664905,0.02276854,87992.0,87984.0,0.01407938]
[1769425665170,0.02276854,87992.0,87984.0,8.477e-05]
[1769425667887,0.02276854,87992.0,87985.0,0.02416949]
[1769425672035,0.02276854,87992.0,87985.0,0.08965714]
[1769425672245,0.02276854,87992.0,87986.0,0.01399365]
[1769425675839,0.02276854,87992.0,87984.0,8.477e-05]
[1769425675979,0.01399365,87991.0,87984.0,8.477e-05]
[1769425676586,0.37680494,87988.0,87972.0,0.0001458]
[1769425676788,0.27163297,87982.0,87972.0,0.00021991]
[1769425677866,0.40176063,87986.0,87972.0,0.00021991]
[1769425678247,0.40176063,87986.0,87972.0,0.01158716]
[1769425678461,0.27163297,87990.0,87974.0,0.01136699]
[1769425678662,0.01399365,87989.0,87974.0,0.01136699]
[1769425679153,0.01399365,87989.0,87974.0,0.06820185]
[1769425679458,0.01399365,87989.0,87975.0,0.01136686]
[1769425679803,0.01399365,87989.0,87974.0,0.01136699]
[1769425680236,0.01399365,87989.0,87973.0,0.61285697]
[1769425680432,0.01399365,87989.0,87974.0,0.01136699]
[1769425680686,0.01399365,87989.0,87973.0,0.66969251]
[1769425680883,0.01399365,87989.0,87973.0,0.61285697]
[1769425681308,0.01399365,87989.0,87973.0,0.72445975]
[1769425682455,0.01399365,87989.0,87973.0,0.71309263]
[1769425687316,0.01399365,87989.0,87973.0,0.60148985]
[1769425689032,0.01399365,87989.0,87974.0,0.01136699]
[1769425689233,0.01399365,87989.0,87974.0,0.66969167]
[1769425689571,0.01399365,87989.0,87975.0,0.03539608]
[1769425689719,0.01399365,87989.0,87976.0,0.01136673]
[1769425690109,0.37680494,87991.0,87976.0,0.01136673]
[1769425692236,0.20462003,87991.0,87977.0,0.11160278]
[1769425693668,0.04711812,87992.0,87977.0,0.11160278]
[1769425696924,0.01399365,87991.0,87977.0,0.11160278]
[1769425699338,0.27169139,87990.0,87977.0,0.11160278]
[1769425700419,0.01399365,87989.0,87977.0,0.11160278]
[1769425700830,0.01399365,87989.0,87978.0,0.05382816]
[1769425701600,0.01399365,87989.0,87979.0,0.00159595]
[1769425701956,0.01399365,87989.0,87976.0,0.00159595]
[1769425703183,0.01399365,87989.0,87975.0,0.02402922]
[1769425704161,0.02276854,87977.0,87972.0,0.00021991]
[1769425704522,0.02276854,87976.0,87972.0,0.00021991]
[1769425704729,0.02465323,87975.0,87972.0,0.00021991]
[1769425704950,0.02276854,87976.0,87963.0,0.0001458]
[1769425704951,0.02465323,87973.0,87963.0,0.0001458]
[1769425705071,0.29639119,87973.0,87963.0,0.0001458]
[1769425706828,0.0246998,87973.0,87963.0,0.0001458]
[1769425710318,4.657e-05,87973.0,87963.0,0.0001458]
[1769425710522,4.657e-05,87973.0,87963.0,0.54460848]
[1769425710742,4.657e-05,87973.0,87963.0,0.53324007]
[1769425712470,4.657e-05,87973.0,87964.0,0.00036625]
[1769425713018,4.657e-05,87973.0,87964.0,0.01173453]
[1769425713215,4.657e-05,87973.0,87964.0,0.00036625]
[1769425713419,4.657e-05,87973.0,87964.0,0.01173453]
[1769425713722,4.657e-05,87973.0,87965.0,0.01136815]
[1769425713943,4.657e-05,87973.0,87966.0,0.00036624]
[1769425714400,4.657e-05,87973.0,87964.0,0.00036624]
[1769425714808,4.657e-05,87973.0,87963.0,0.54460848]
[1769425715023,4.657e-05,87973.0,87963.0,0.53324007]
[1769425715225,4.657e-05,87973.0,87963.0,0.0001458]
[1769425715837,4.657e-05,87973.0,87963.0,0.01151421]
[1769425716241,4.657e-05,87973.0,87963.0,0.0001458]
[1769425717846,0.02276854,87972.0,87963.0,0.0001458]
[1769425718019,0.02276854,87972.0,87963.0,0.00019237]
[1769425721660,0.02276854,87972.0,87965.0,0.01136815]
[1769425721878,0.02276854,87972.0,87966.0,0.01099957]
[1769425722088,0.02276854,87972.0,87965.0,0.01099957]
[1769425722420,0.02276854,87972.0,87967.0,0.01136789]
[1769425722801,0.02276854,87972.0,87967.0,0.06783879]
[1769425723004,0.02276854,87972.0,87968.0,0.01136777]
[1769425723424,0.27169139,87980.0,87967.0,0.0223672]
[1769425723646,0.02276854,87975.0,87968.0,0.06136869]
[1769425723977,0.27169139,87980.0,87969.0,0.01136764]
[1769425724182,0.02276854,87976.0,87969.0,0.01136764]
[1769425724413,0.02276854,87976.0,87971.0,0.01136738]
[1769425724625,0.02276854,87976.0,87970.0,0.05683735]
[1769425724824,0.02276854,87976.0,87970.0,0.08695239]
[1769425725029,0.02276854,87976.0,87970.0,0.03011504]
[1769425725180,0.02276854,87976.0,87971.0,0.01136738]
[1769425726060,0.02276854,87976.0,87970.0,0.08695227]
[1769425726260,0.02276854,87976.0,87970.0,0.03011504]
[1769425726540,0.02276854,87976.0,87971.0,0.02518235]
[1769425728483,0.02276854,87976.0,87968.0,0.08379622]
[1769425728688,0.02276854,87976.0,87969.0,0.01136764]
[1769425729039,0.02276854,87976.0,87968.0,0.07273646]
[1769425729242,0.02276854,87976.0,87968.0,0.08383275]
[1769425729488,0.02276854,87976.0,87968.0,0.02246406]
[1769425729903,0.02276854,87976.0,87969.0,0.05683783]
[1769425730083,0.02276854,87976.0,87970.0,0.06820468]
[1769425730913,0.02276854,87976.0,87972.0,0.01136725]
[1769425731118,0.02276854,87976.0,87971.0,0.01136738]
[1769425731290,0.02276854,87976.0,87972.0,0.06820318]
[1769425732028,0.02276854,87976.0,87971.0,0.01136738]
[1769425732185,0.02276854,87976.0,87973.0,0.02490027]
[1769425733358,0.02276854,87976.0,87971.0,0.03626765]
[1769425733656,0.02276854,87976.0,87971.0,0.02490027]
[1769425733816,0.02276854,87976.0,87972.0,0.01136725]
[1769425734022,0.02276854,87976.0,87971.0,0.09310429]
[1769425734539,0.02276854,87976.0,87971.0,0.03626765]
[1769425734744,0.02276854,87976.0,87973.0,0.01136712]
[1769425735149,0.02276854,87976.0,87969.0,0.01136764]
[1769425735318,0.02276854,87976.0,87972.0,0.02490027]
[1769425735516,0.42533413,87989.0,87973.0,0.01136712]
[1769425735722,0.03412714,88000.0,87972.0,0.03626752]
[1769425735723,0.02276854,87988.0,87976.0,0.01136673]
[1769425735963,0.02276854,87988.0,87978.0,0.56258596]
[1769425736160,0.02276854,87988.0,87980.0,0.02490027]
[1769425741483,0.02276854,87988.0,87980.0,0.03626648]
[1769425741925,0.02276854,87988.0,87981.0,0.01136609]
[1769425742161,0.02276854,87988.0,87982.0,0.01136596]
[1769425742456,0.02276854,87988.0,87981.0,0.01136609]
[1769425742850,0.02276854,87988.0,87980.0,0.03626648]
[1769425743429,0.02276854,87988.0,87980.0,0.02490027]
[1769425744261,0.02276854,87988.0,87980.0,0.03626648]
[1769425744465,0.02276854,87988.0,87980.0,0.02490027]
[1769425745818,0.02276854,87988.0,87976.0,0.01002745]
[1769425746040,0.02276854,87988.0,87976.0,0.11577021]
[1769425747984,0.02276854,87988.0,87976.0,0.01002745]
[1769425748737,0.02276854,87988.0,87976.0,0.02139418]
[1769425748896,0.02276854,87988.0,87976.0,0.01002745]
[1769425749096,0.02276854,87988.0,87976.0,0.0782278]
[1769425749338,0.02276854,87988.0,87977.0,0.05683294]
[1769425749579,0.02276854,87988.0,87978.0,0.0134188]
[1769425750327,0.02276854,87988.0,87977.0,0.0247854]
[1769425750532,0.02276854,87988.0,87978.0,0.09873823]
[1769425750734,0.02276854,87988.0,87979.0,0.01341864]
[1769425751112,0.02276854,87988.0,87977.0,0.01341865]
[1769425751798,0.02276854,87988.0,87977.0,0.02478525]
[1769425751985,0.02276854,87988.0,87977.0,0.01341865]
[1769425752477,0.02276854,87988.0,87978.0,0.01136647]
[1769425752632,0.02276854,87988.0,87980.0,0.01136621]
[1769425752835,0.02276854,87988.0,87980.0,0.0247847]
[1769425753229,0.02276854,87988.0,87979.0,0.02478483]
[1769425753863,0.02276854,87988.0,87981.0,0.01136609]
[1769425754069,0.0001458,87993.0,87982.0,0.06463698]
[1769425754272,0.0001458,87993.0,87981.0,0.56258596]
[1769425755536,0.0001458,87993.0,87977.0,0.0113666]
[1769425755734,0.0001458,87993.0,87978.0,0.01111021]
[1769425756239,0.0001458,87993.0,87978.0,0.02247668]
[1769425756624,0.0001458,87993.0,87978.0,0.01111021]
[1769425757140,0.0001458,87993.0,87978.0,0.08574666]
[1769425757711,0.27167985,87990.0,87978.0,0.08574666]
[1769425757910,0.02425565,87989.0,87975.0,0.56258596]
[1769425758126,0.02425565,87989.0,87970.0,0.60486436]
[1769425758473,0.02425565,87989.0,87972.0,0.01136725]
[1769425758793,0.02425565,87989.0,87971.0,0.56136851]
[1769425759059,0.02425565,87989.0,87972.0,0.12297003]
[1769425759561,0.02425565,87989.0,87972.0,0.11160278]
[1769425760056,0.02425565,87989.0,87972.0,0.12297003]
[1769425760266,0.02425565,87989.0,87972.0,0.17980608]
[1769425760464,0.02425565,87989.0,87973.0,0.01136712]
[1769425760679,0.02425565,87989.0,87974.0,0.05382816]
[1769425764283,0.02425565,87989.0,87972.0,0.06820351]
[1769425764590,0.02425565,87989.0,87972.0,0.01136725]
[1769425764790,0.02425565,87989.0,87972.0,0.06820348]
[1769425765720,0.02425565,87989.0,87972.0,0.01136725]
[1769425766943,0.10117233,87990.0,87972.0,0.01136725]
[1769425767141,0.02392674,87989.0,87973.0,0.11160278]
[1769425769700,0.10117233,87990.0,87973.0,0.11160278]
[1769425769701,0.40301364,87987.0,87973.0,0.11160278]
[1769425769901,0.02392674,87981.0,87967.0,0.05683944]
[1769425770396,0.02392674,87981.0,87967.0,0.01136789]
[1769425770602,0.02392674,87981.0,87967.0,0.06820725]
[1769425770820,0.02392674,87981.0,87968.0,0.01136777]
[1769425771660,0.02392674,87981.0,87967.0,0.01136789]
[1769425771893,0.02392674,87981.0,87967.0,0.0682073]
[1769425772092,0.02392674,87981.0,87967.0,0.01136789]
[1769425772332,0.02392674,87981.0,87966.0,0.72464113]
[1769425772455,0.02392674,87979.0,87966.0,0.17464]
[1769425775320,0.02392674,87979.0,87964.0,0.56136941]
[1769425775477,0.02392674,87979.0,87964.0,0.67297219]
[1769425776519,0.02392674,87979.0,87964.0,0.66160391]
[1769425776913,0.02392674,87979.0,87965.0,0.01136815]
[1769425777212,0.02392674,87979.0,87965.0,0.06820868]
[1769425777416,0.02392674,87979.0,87965.0,0.01136815]
[1769425777982,0.02392674,87979.0,87966.0,0.01136802]
[1769425779154,0.02392674,87979.0,87965.0,0.01136815]
[1769425779702,0.02392674,87979.0,87964.0,0.55000113]
[1769425780963,0.02392674,87979.0,87965.0,0.01136815]
[1769425781116,0.02392674,87979.0,87964.0,0.55000113]
[1769425781311,0.02392674,87979.0,87964.0,0.61821062]
[1769425781552,0.02392674,87979.0,87965.0,0.01136815]
[1769425782772,0.02392674,87979.0,87966.0,0.01136802]
[1769425782971,0.02392674,87979.0,87965.0,0.06820876]
[1769425783169,0.12502144,87990.0,87965.0,0.06820876]
[1769425783417,0.02276854,87980.0,87966.0,0.11160278]
[1769425783592,0.02276854,87980.0,87964.0,0.64201146]
[1769425783796,0.02276854,87980.0,87965.0,0.01136815]
[1769425783977,0.02276854,87980.0,87964.0,0.64201146]
[1769425784145,0.02276854,87980.0,87965.0,0.01136815]
[1769425784847,0.02276854,87980.0,87964.0,0.64201146]
[1769425785047,0.02276854,87980.0,87966.0,0.01136802]
[1769425785284,0.02276854,87980.0,87967.0,0.01136789]
[1769425785485,0.02276854,87980.0,87968.0,0.07023682]
[1769425785686,0.02276854,87980.0,87969.0,0.01136764]
[1769425785888,0.02276854,87980.0,87970.0,0.08918886]
[1769425786449,0.02399565,87984.0,87970.0,0.15739339]
[1769425786650,0.02399565,87989.0,87970.0,0.42907324]
[1769425786901,0.02399565,87989.0,87971.0,0.01136738]
[1769425787058,0.02399565,87989.0,87972.0,0.01339757]
[1769425787263,0.02276854,87987.0,87972.0,0.10318332]
[1769425789035,0.02276854,87987.0,87972.0,0.11455057]
[1769425789247,0.02276854,87987.0,87973.0,0.0249259]
[1769425789358,0.02276854,87987.0,87974.0,0.01339726]
[1769425791802,0.02276854,87987.0,87974.0,0.03832316]
[1769425792911,0.02276854,87987.0,87975.0,0.0249259]
[1769425793678,0.02276854,87987.0,87975.0,0.03836918]
[1769425793882,0.02276854,87987.0,87975.0,0.0249259]
[1769425794894,6.891e-05,87986.0,87972.0,0.0001458]
[1769425796387,0.27167985,87982.0,87972.0,0.0001458]
[1769425796593,6.891e-05,87981.0,87972.0,0.0001458]
[1769425801076,0.02579357,87987.0,87973.0,0.0249259]
[1769425801077,0.02276854,87987.0,87973.0,0.0249259]
[1769425801848,0.02283745,87987.0,87973.0,0.0249259]
[1769425820396,0.02276854,87982.0,87973.0,0.0249259]
[1769425820547,0.02276854,87983.0,87973.0,0.0249259]
[1769425821031,0.253882,87995.0,87976.0,0.02379439]
[1769425821213,0.253882,87995.0,87978.0,0.02379439]
[1769425823292,0.118284,87995.0,87978.0,0.02379439]
[1769425825300,0.03625909,87996.0,87978.0,0.02379439]
[1769425825501,0.108147,87995.0,87978.0,0.02379439]
[1769425825899,0.117876,87995.0,87978.0,0.02379439]
[1769425826131,0.03625909,87996.0,87978.0,0.02379439]
[1769425826318,0.13884,87995.0,87978.0,0.02379439]
[1769425826709,0.03625909,87996.0,87978.0,0.02379439]
[1769425826926,0.162388,87995.0,87978.0,0.02379439]
[1769425829158,0.162388,87995.0,87980.0,0.60211085]
[1769425829477,0.162388,87995.0,87981.0,0.02379439]
[1769425831366,0.162388,87995.0,87977.0,0.06819934]
[1769425831367,0.145194,87995.0,87982.0,0.57831646]
[1769425831566,0.145194,87995.0,87985.0,0.00043439]
[1769425831773,0.145194,87995.0,87984.0,0.57831646]
[1769425832211,0.145194,87995.0,87980.0,0.01136621]
[1769425832416,0.145194,87995.0,87979.0,0.09199237]
[1769425832417,0.145194,87995.0,87979.0,0.61347719]
[1769425832622,0.145194,87995.0,87980.0,0.01136621]
[1769425832975,0.145194,87995.0,87979.0,0.67142958]
[1769425833175,0.02276854,87996.0,87979.0,0.68279592]
[1769425833688,0.02276854,87996.0,87980.0,0.01136621]
[1769425834707,0.02276854,87996.0,87980.0,0.57831646]
[1769425834930,0.02276854,87996.0,87980.0,0.58968267]
[1769425835681,0.02276854,87996.0,87980.0,0.57831646]
[1769425836192,0.02276854,87996.0,87981.0,0.09611221]
[1769425836387,0.02276854,88002.0,87984.0,0.02379439]
[1769425836533,0.02276854,88002.0,87985.0,0.57831646]
[1769425837446,0.02341664,88004.0,87987.0,0.02379439]
[1769425837653,0.02341664,88004.0,87988.0,0.57831646]
[1769425838269,0.203787,88003.0,87988.0,0.57831646]
[1769425840202,0.203787,88003.0,87988.0,0.58968164]
[1769425840590,0.203787,88003.0,87988.0,0.57831646]
[1769425841379,0.162577,88003.0,87991.0,0.57831646]
[1769425842590,0.159908,88002.0,87991.0,0.57831646]
[1769425843186,4.767e-05,88003.0,87991.0,0.57831646]
[1769425843388,4.767e-05,88003.0,87991.0,0.63955251]
[1769425843894,4.767e-05,88003.0,87991.0,0.57831646]
[1769425847784,0.02307851,88003.0,87991.0,0.57831646]
[1769425852128,0.02278257,88003.0,87991.0,0.57831646]
[1769425858696,0.27170585,88010.0,87991.0,0.57831646]
[1769425858697,0.665543,88007.0,87991.0,0.57831646]
[1769425858929,0.14050137,88010.0,87991.0,0.57831646]
[1769425858930,0.560441,88005.0,87991.0,0.64415172]
[1769425859136,0.534767,88004.0,87991.0,0.64415172]
[1769425859716,0.516667,88004.0,87991.0,0.64415172]
[1769425860358,0.0248986,88008.0,87991.0,0.64415172]
[1769425860676,0.61883,88009.0,87991.0,0.64415172]
[1769425860677,0.0248986,88004.0,87991.0,0.64415172]
[1769425861979,0.0248986,88004.0,87991.0,0.57836413]
[1769425862260,0.506525,88010.0,87991.0,0.57836413]
[1769425862427,0.506525,88010.0,88000.0,0.56655254]
[1769425862428,0.116066,88010.0,88000.0,0.56655254]
[1769425862620,0.0248986,88009.0,87991.0,4.767e-05]
[1769425862840,0.0248986,88009.0,87991.0,0.56660021]
[1769425863112,0.0248986,88007.0,87991.0,4.767e-05]
[1769425864846,0.0248986,88007.0,87991.0,0.56660021]
[1769425866250,0.0248986,88007.0,87992.0,0.00113646]
[1769425866651,0.0248986,88007.0,87991.0,4.767e-05]
[1769425866652,0.0248986,88007.0,87991.0,0.00118413]
[1769425868093,0.0248986,88007.0,87991.0,0.62230327]
[1769425868319,0.0248986,88007.0,87991.0,0.577965]
[1769425868659,0.0001458,88011.0,87994.0,0.57791695]
[1769425869056,0.0001458,88011.0,87994.0,0.56655254]
[1769425869564,0.0250444,88011.0,87994.0,0.57791695]
[1769425870350,0.0250444,88011.0,87994.0,0.68951973]
[1769425871179,0.0250444,88011.0,87994.0,0.69475829]
[1769425871353,0.0250444,88011.0,87996.0,0.56655254]
[1769425871572,0.0001458,88011.0,87996.0,0.56655254]
[1769425871750,0.0001458,88011.0,87995.0,0.01136428]
[1769425871751,0.0001458,88011.0,88000.0,0.56655254]
[1769425872752,0.0248986,88007.0,87988.0,0.56655254]
[1769425873090,0.0248986,88005.0,87988.0,0.56655254]
[1769425876186,0.04139285,88005.0,87988.0,0.56655254]
[1769425878482,0.04139285,88005.0,87987.0,0.01136531]
[1769425878687,0.04139285,88005.0,87991.0,0.52109458]
[1769425879133,0.0248986,88005.0,87991.0,0.52109458]
[1769425880011,0.0248986,88005.0,87991.0,0.51969458]
[1769425884779,0.08513718,88010.0,87991.0,0.51969458]
[1769425884981,0.02297159,88009.0,87991.0,0.51969458]
[1769425887064,0.02297159,88008.0,87991.0,0.51969458]
[1769425887248,0.02297159,88008.0,87992.0,0.05433911]
[1769425887463,0.02297159,88008.0,87991.0,0.51969458]
[1769425891923,0.0001458,88011.0,87993.0,0.52104691]
[1769425892119,0.0001458,88011.0,87993.0,0.54474345]
[1769425893782,0.0001458,88011.0,87993.0,0.55610799]
[1769425894117,0.0001458,88011.0,87993.0,0.58923409]
[1769425894292,0.0001458,88011.0,87996.0,0.6015642]
[1769425894439,0.0001458,88011.0,87997.0,0.53241093]
[1769425894877,0.0001458,88011.0,87997.0,0.55610747]
[1769425895587,0.0001458,88011.0,87997.0,0.61292758]
[1769425895955,0.0001458,88011.0,87997.0,0.55610747]
[1769425896356,0.0001458,88011.0,87999.0,0.01136376]
[1769425896999,0.0001458,88011.0,88000.0,0.27148917]
[1769425897251,0.0001458,88011.0,88001.0,0.52104691]
[1769425897832,0.0001458,88011.0,88001.0,0.51964691]
[1769425900710,0.0001458,88011.0,88003.0,0.52104691]
[1769425904544,0.0004,88019.0,88005.0,0.49768691]
[1769425904763,0.0004,88019.0,88006.0,0.48785774]
[1769425904975,0.107491,88018.0,88006.0,0.48785774]
[1769425905209,0.02337159,88019.0,88001.0,0.02369654]
[1769425905409,0.11096,88018.0,88001.0,0.54474345]
[1769425905633,0.02297159,88018.0,88002.0,0.09571491]
[1769425908368,0.02297159,88018.0,88002.0,0.61676182]
[1769425910522,0.22012,88021.0,88002.0,0.61676182]
[1769425910523,0.61789304,88021.0,88002.0,0.61676182]
[1769425910673,0.149452,88019.0,88002.0,0.61676182]
[1769425911006,0.130267,88019.0,88002.0,0.61676182]
[1769425911209,0.130267,88019.0,88003.0,0.06971603]
[1769425917041,0.52741622,88021.0,88003.0,0.06971603]
[1769425917269,0.182005,88020.0,88003.0,0.0929884]
[1769425917472,0.199898,88020.0,88003.0,0.0929884]
[1769425919770,0.199898,88020.0,88004.0,0.02327237]
[1769425919919,0.199898,88020.0,88005.0,0.09571491]
[1769425920795,0.52741622,88021.0,88007.0,0.02327237]
[1769425920796,0.233904,88021.0,88007.0,0.02327237]
[1769425920933,0.170004,88021.0,88007.0,0.02327237]
[1769425921360,0.0004,88022.0,88007.0,0.02327237]
[1769425921687,0.319537,88021.0,88007.0,0.02327237]
[1769425923231,0.186229,88021.0,88007.0,0.02327237]
[1769425923438,0.161396,88021.0,88007.0,0.02327237]
[1769425924045,0.0004,88022.0,88007.0,0.02327237]
[1769425925969,0.161356,88021.0,88007.0,0.02327237]
[1769425927589,0.0004,88022.0,88007.0,0.02327237]
[1769425927727,0.118096,88021.0,88007.0,0.02327237]
[1769425930890,0.66954873,88021.0,88001.0,0.02327237]
[1769425931098,0.761768,88020.0,88001.0,0.56803982]
[1769425931299,0.52741622,88019.0,88001.0,0.56803982]
[1769425931451,0.55145273,88017.0,88001.0,0.56803982]
[1769425933420,0.55145273,88017.0,88001.0,0.02327237]
[1769425933724,0.55145273,88016.0,87998.0,0.0001458]